Cogmind - Beta 15 *** ADVENTURER MODE // 2025.09.20 @ 07:22:24 Player: st.sebastian Result: Destroyed by WC-M6Y(R) with Subdweller Machine Gun Performance ------------- Evolutions (0) 0 Regions Visited (2) 400 Robots Destroyed (17) 85 Value Destroyed (319) 319 Prototype IDs (4) 80 Alien Tech Used (0) 0 Bonus (0) 0 TOTAL SCORE: 884 Bonus ------- None Cogmind --------- Core Integrity 0/250 Matter 285/300 Energy 231/250 System Corruption 0% Temperature Cool (30) Movement Rolling (100) Location -10/Subcaves Parts ------- > --- POWER (1) -------- Ion Engine > --- PROPULSION (2) --- Compact Wheel Compact Wheel > --- UTILITY (2) ------ Medium Storage Unit Weight Redist. System > --- WEAPON (2) ------- Advanced Beam Cannon > --- INVENTORY (10) --- Compact Wheel Compact Wheel Humpback High-capacity Battery (250) Advanced Beam Cannon Assault Rifle Peak State ------------ > --- POWER ------------ Ion Engine > --- PROPULSION ------- Compact Wheel Compact Wheel > --- UTILITY ---------- Improved Heat Sink Medium Storage Unit > --- WEAPON ----------- Particle Gun Advanced Beam Cannon > --- INVENTORY -------- Ion Engine Compact Wheel Compact Wheel Compact Wheel Compact Wheel High-capacity Battery Weight Redist. System Medium Laser Assault Rifle [Rating: 13] Favorites ----------- Power Ion Engine Engine Ion Engine Propulsion Compact Wheel Wheel Compact Wheel Utility Medium Storage Unit Device Improved Heat Sink Storage Medium Storage Unit Weapon Particle Gun Energy Gun Particle Gun Energy Cannon Advanced Beam Cannon Ballistic Gun Assault Rifle Build | -11 -10 -10 ------- Run | Yrd Mat Sub Slots Evolved . | . . . Power . | . . . Propulsion . | . . . Utility . | . . . Weapon . | . . . Parts Attached 17 | 6 9 2 Power 2 | 1 . 1 Engine 2 | 1 . 1 Core . | . . . Reactor . | . . . Propulsion 5 | 2 2 1 Treads . | . . . Leg . | . . . Wheel 5 | 2 2 1 Hover . | . . . Flight . | . . . Utility 5 | 1 4 . Device 2 | . 2 . Storage 3 | 1 2 . Processor . | . . . Hackware . | . . . Protection . | . . . Artifact . | . . . Weapon 5 | 2 3 . Energy Gun 2 | 1 1 . Energy Cannon 2 | . 2 . Ballistic Gun 1 | 1 . . Ballistic Cannon . | . . . Launcher . | . . . Special Weapon . | . . . Impact Weapon . | . . . Slashing Weapon . | . . . Piercing Weapon . | . . . Special Melee Weapon . | . . . Unidentified Prototypes 1 | . 1 . Parts Lost 4 | . 1 3 Power 1 | . . 1 Propulsion 1 | . . 1 Utility 1 | . 1 . Weapon 1 | . . 1 Highest Loss Streak 1 | . 1 1 To Critical Strikes . | . . . Average Backups 6 | 1 7 7 Power . | . . . Propulsion 2 | 1 2 2 Utility 1 | . 1 2 Weapon 1 | . 1 2 Tool/Special . | . . . Unused Backups 6 | . 3 3 Power 1 | . 1 . Propulsion 3 | . 2 1 Utility . | . . . Weapon 2 | . . 2 Tool/Special . | . . . Average Slot Usage (%) 95 | . 96 89 Engine 14 | . 14 14 Wheel 28 | . 28 28 Device 10 | . 11 4 Storage 14 | . 14 14 Energy Gun 14 | . 14 14 Energy Cannon 9 | . 8 14 Ballistic Gun 4 | . 4 . Peak Build Rating 13 | 6 13 12 Average Rating 10 | 4 11 10 On Entrance 6 | . 6 12 Naked Turns . | . . . Heaviest Build 23 | 14 23 22 Greatest Support 38 | 32 38 38 Greatest Overweight (x) 1 | . 1 1 Average Overweight (x) . | . . . Largest Inventory Capacity 10 | 8 10 10 Average Capacity 9 | 6 9 10 Most Carried 10 | 3 10 9 Average Carried 7 | 1 7 8 Final Capacity 10 | 8 10 10 Final Carried 9 | 3 9 7 Class Distribution -------------------- 100% | Mutant Dominant Class ---------------- Mutant | -10/Materials Mutant | -10/Subcaves Resources | -11 -10 -10 ----------- Run | Yrd Mat Sub Matter Collected 406 | 104 287 15 Remotely . | . . . Salvage Created 517 | . 460 57 Parts 32 | . 29 3 Haulers Intercepted 2 | . 2 . Recyclers Shooed . | . . . Parts Field Recycled . | . . . Retrieved Matter . | . . . Parts Self-Destructed 6 | . . 6 Prevented . | . . . Kills | -11 -10 -10 ------- Run | Yrd Mat Sub Combat Hostiles Destroyed 11 | . 9 2 Guns 6 | . 6 . Cannons 3 | . 2 1 Classes Destroyed 6 | . 6 . Hauler 2 | . 2 . Recycler 1 | . 1 . Watcher 3 | . 3 . Swarmer 6 | . 6 . Grunt 2 | . 2 . Subdweller 3 | . 1 2 Best Kill Streak 5 | . 5 1 Combat Bots Only 3 | . 3 1 Max Kills in Single Turn 1 | . 1 1 Gunslinging . | . . . Exploded . | . . . Melee . | . . . Uniques/NPCs Destroyed . | . . . Combat | -11 -10 -10 -------- Run | Yrd Mat Sub Hostile Shots Fired 92 | . 50 42 Missed 29 | . 12 17 Hits 63 | . 38 25 Projectile 63 | . 38 25 Critical Strikes 2 | . 1 1 Damage Taken 726 | . 321 405 Core 258 | . 99 159 Absorbed by Shields . | . . . Ignored by Resistances 215 | . 100 115 Regen/Repaired (Parts) 26 | . 26 . Core Remaining (%) 100 | 100 . . Volleys Fired 50 | . 35 15 Largest 2 | . 2 2 Hottest 133 | . 133 133 Shots Fired 98 | . 69 29 Gun 60 | . 46 14 Cannon 38 | . 23 15 Launcher . | . . . Special . | . . . Kinetic 12 | . 12 . Thermal 86 | . 57 29 Explosive . | . . . Electromagnetic . | . . . Robot Hit Streak 16 | . 16 10 Robot Miss Streak 3 | . 3 1 Penetration Max . | . . . Secondary Targets . | . . . Shots Hit Robots 69 | . 51 18 Core Hits 24 | . 20 4 Critical Kills 1 | . . 1 Critical Parts Destroyed . | . . . Critical Strikes 3 | . 2 1 Burn 2 | . 2 . Meltdown 1 | . . 1 Melee Attacks . | . . . Impact . | . . . Slashing . | . . . Piercing . | . . . Sneak Attacks . | . . . Combat Hostiles . | . . . Follow-up Attacks . | . . . Damage Inflicted 1179 | . 837 342 Guns 667 | . 528 139 Cannons 512 | . 309 203 Explosions . | . . . Melee . | . . . Ramming . | . . . Kinetic 132 | . 132 . Thermal 1047 | . 705 342 Explosive . | . . . Electromagnetic . | . . . Impact . | . . . Slashing . | . . . Piercing . | . . . Highest Corruption . | . . . Average Corruption . | . . . Corruption Purged . | . . . Corruption Blocked . | . . . Overload Shots . | . . . Overflow Damage 12 | . 12 . Projectiles 12 | . 12 . Explosions . | . . . Melee . | . . . Knockbacks . | . . . Impact . | . . . Kinetic . | . . . Secondary . | . . . Self-Inflicted Damage . | . . . Shots . | . . . Rammed . | . . . Targets Rammed . | . . . Kicked . | . . . Crushed . | . . . Highest Temperature 268 | . 268 96 Average Temperature 64 | . 76 32 Received Heat Transfer 204 | . 120 84 Siege Activations . | . . . Martial Activations . | . . . Shielding Activations . | . . . Robots Disrupted . | . . . Combat Hostiles . | . . . Robots Corrupted . | . . . Combat Hostiles . | . . . Parts Fried . | . . . Impact Corruptions . | . . . Robots Melted 2 | . 1 1 Combat Hostiles 2 | . 1 1 Parts Melted 5 | . 3 2 Heat Transferred 2368 | . 1665 703 Parts Sabotaged . | . . . Parts Stolen . | . . . Parts Stripped . | . . . Power Chain Reactions . | . . . Alert | -11 -10 -10 ------- Run | Yrd Mat Sub Maximum Alert Level . | . . . Low Security (%) 100 | 100 100 . Level 1 . | . . . Level 2 . | . . . Level 3 . | . . . Level 4 . | . . . Level 5 . | . . . High Security . | . . . Max Security . | . . . Peak Influence 139 | . 139 . Initial . | . . . Average 31 | . 33 . Influence Increases 306 | . 276 30 Destroy 0b10 Robot/C 160 | . 160 . Destroy 0b10 Robot/NC 30 | . 30 . Destroy Leader 40 | . 40 . Successful Hack 31 | . 31 . Lose Combat Pursuer 45 | . 15 30 Influence Decreases 306 | . 276 30 Time Decay 296 | . 276 20 Lost Part 10 | . . 10 Squads Dispatched . | . . . Investigation . | . . . Extermination . | . . . Reinforcement . | . . . Assault . | . . . Garrison . | . . . Intercept . | . . . Searches Triggered . | . . . Construction Impeded . | . . . Haulers Reinforced . | . . . Active Scanning Responses . | . . . Cargo Convoy Interrupts . | . . . Stealth | -11 -10 -10 --------- Run | Yrd Mat Sub Distress Signals 1 | . 1 . Communications Jammed . | . . . Distress Signals . | . . . Times Spotted 35 | . 15 20 Peak Tracking Total 12 | . 5 12 Tactical Retreats 4 | . 2 2 Traps | -11 -10 -10 ------- Run | Yrd Mat Sub Traps Triggered . | . . . Indirectly . | . . . Trap Hack Attempts . | . . . Triggered . | . . . Disarmed . | . . . Reprogrammed . | . . . Reused . | . . . Traps Extracted . | . . . Installed . | . . . Triggered . | . . . Machines | -11 -10 -10 ---------- Run | Yrd Mat Sub Machines Disabled . | . . . Max in Single Turn . | . . . Machines Repaired . | . . . Machines Dismantled . | . . . Machines Sabotaged . | . . . Overloaded Fab Kills . | . . . Hacking | -11 -10 -10 --------- Run | Yrd Mat Sub Machines Accessed 8 | . 8 . Terminals 6 | . 6 . Fabricators . | . . . Repair Stations 1 | . 1 . Recycling Units 1 | . 1 . Scanalyzers . | . . . Garrison Access . | . . . Total Hacks 25 | . 25 . Successful 18 | . 18 . Failed 7 | . 7 . Catastrophic . | . . . Database Lockouts . | . . . Manual . | . . . Terminals 22 | . 22 . Fabricators . | . . . Repair Stations 2 | . 2 . Recycling Units 1 | . 1 . Scanalyzers . | . . . Garrison Access . | . . . Terminal Hacks 15 | . 15 . Prototype ID Bank 2 | . 2 . Emergency Access Points 2 | . 2 . Locate Traps 3 | . 3 . Dispatch Records 1 | . 1 . Patrol Status 1 | . 1 . Hauler Manifests 2 | . 2 . Registered Components 1 | . 1 . Zone Layout 3 | . 3 . Fabricator Hacks . | . . . Repair Station Hacks 2 | . 2 . Scan Component 1 | . 1 . Repair 1 | . 1 . Recycling Unit Hacks 1 | . 1 . Report Inventory 1 | . 1 . Scanalyzer . | . . . Garrison Access Hacks . | . . . Unauthorized Hacks . | . . . Terminals . | . . . Fabricators . | . . . Repair Stations . | . . . Recycling Units . | . . . Scanalyzers . | . . . Garrison Access . | . . . Data Cores Recovered . | . . . Used . | . . . Hacking Detections 6 | . 6 . Full Trace Events . | . . . Feedback Events . | . . . Feedback Blocked . | . . . Robot Schematics Acquired . | . . . Robots Built . | . . . Authchips . | . . . Time . | . . . Total Robot Build Rating . | . . . Part Schematics Acquired . | . . . Parts Built . | . . . Authchips . | . . . Time . | . . . Total Part Build Rating . | . . . Parts Repaired 1 | . 1 . Time 26 | . 26 . Parts Recycled . | . . . Recycled Matter . | . . . Retrieved Matter . | . . . Retrieved Components . | . . . Parts Scanalyzed . | . . . Part Schematics Acquired . | . . . Parts Damaged . | . . . Bothacking | -11 -10 -10 ------------ Run | Yrd Mat Sub Used RIF Installer . | . . . Robots Hacked . | . . . Non-combat . | . . . Combat . | . . . Robot Hacks Applied . | . . . Relay Couplers Released . | . . . Fabnet Peak Effective % . | . . . Robots Rewired . | . . . Allies Hacked . | . . . Hacks Repelled . | . . . Allies | -11 -10 -10 -------- Run | Yrd Mat Sub Total Allies . | . . . Largest Group . | . . . Highest-Rated Group . | . . . Highest-Rated Ally . | . . . Total Orders . | . . . Ally Attacks . | . . . Total Damage . | . . . Kills . | . . . Allies Corrupted . | . . . Allies Melted . | . . . Intel | -11 -10 -10 ------- Run | Yrd Mat Sub Active Infowar (turns) . | . . . Robot Analysis Total . | . . . Derelict Logs Recovered . | . . . Drone Launches . | . . . Drone Recoveries . | . . . Exploration | -11 -10 -10 ------------- Run | Yrd Mat Sub Turns Passed 1108 | 43 884 181 Spaces Moved 801 | 33 667 101 Core 2 | 2 . . Treads . | . . . Legs . | . . . Wheels 799 | 31 667 101 Hover . | . . . Flight . | . . . Fastest Speed 50 | 50 100 100 Average Speed 99 | 96 100 100 Slowest Speed 115 | 100 115 115 Overloaded Moves . | . . . Propulsion Burnouts . | . . . Robots Hopped . | . . . Potential Cave-ins . | . . . Cave-ins Triggered . | . . . Exploration Rate (%) 32 | 3 83 10 Regions Visited 2 Branch Regions 1 Pre-discovered Areas 1 | . . 1 Known Exits Taken . | . . . Unknown Exits Taken 2 | 1 1 . Scrap Searched . | . . . Spaces Dug . | . . . Terrain Destroyed . | . . . Melee . | . . . Projectile . | . . . AOE . | . . . Terrain Rammed . | . . . Walls Destroyed . | . . . Machines Disabled . | . . . Actions | -11 -10 -10 --------- Run | Yrd Mat Sub Total 1011 | 41 817 153 Wait 115 | . 82 33 Move 799 | 32 666 101 Hop . | . . . Pick Up 14 | 3 11 . Fast Attach 9 | 6 3 . Attach 8 | . 5 3 Detach 5 | . 4 1 Swap 3 | . 3 . Drop 8 | . 8 . Fire 50 | . 35 15 Melee . | . . . Ram . | . . . Kick . | . . . Crush . | . . . Escape Stasis . | . . . Rewire . | . . . Trap . | . . . Miscellaneous . | . . . Route ------- -11/Scrapyard -10/Materials (discovered 3 exits: [*Mat x2] / [*Sub]) -10/Subcaves (discovered 1 exit: [*Rec]) History --------- Turn | Location | Event 29 | -11/Scrapyard | Discovered new exit (range 16) 44 | -11/Scrapyard | Entered Materials 303 | -10/Materials | Build established: Mutant 338 | -10/Materials | Discovered new exit (range 16) 631 | -10/Materials | Discovered new exit (range 10) 717 | -10/Materials | Discovered new exit (range 15) 763 | -10/Materials | Repaired Com. Wheel 844 | -10/Materials | Derelicts attacked the area 928 | -10/Materials | Entered Subcaves 929 | -10/Subcaves | Approached by a straggling Scientist 933 | -10/Subcaves | Ambushed by Subdwellers from Twisted Machinery 962 | -10/Subcaves | Core integrity fell below 50% 970 | -10/Subcaves | Shifting Twisted Machinery released Battle Rifle 975 | -10/Subcaves | Shifting Twisted Machinery released Sub. Monowheel 1021 | -10/Subcaves | Learned location of Zion (-6) 1021 | -10/Subcaves | Met a Zionite searching for "candidates" 1039 | -10/Subcaves | Ambushed by swarm of Subdwellers 1041 | -10/Subcaves | Ambushed by Subdwellers from Twisted Machinery 1041 | -10/Subcaves | Ambushed by Subdwellers from Twisted Machinery 1041 | -10/Subcaves | Ambushed by Subdwellers from Twisted Machinery 1062 | -10/Subcaves | Discovered new exit (range 15) 1065 | -10/Subcaves | Core integrity fell below 20% 1104 | -10/Subcaves | Lost 6 allies 1109 | -10/Subcaves | Destroyed by WC-M6Y(R) with Subdweller Machine Gun Last Messages --------------- 01041_ W3-H3B(R) angrily emerges from the Twisted Machinery. 01042_ PX-IO8(g) suffers critical hit (Burn). 01042_ HV Slug penetrates F5-31L(R). 01042_ 7K-0I3(z) destroyed. 01044_ 1U-W1Q(R) destroyed. 01044_ 69-BCS(h) destroyed. 01045_ W3-H3B(R) destroyed. 01046_ WC-M6Y(R) suffers critical hit (Destroy). 01047_ D3-K3D(R) suffers critical hit (Burn). 01047_ D3-K3D(R) destroyed. 01048_ WC-M6Y(R) suffers critical hit (Burn). 01049_ 3G-M9S(R) suffers critical hit (Burn). 01053_ Com. Wheel destroyed. 01062_ EXIT=FOUND 01076_ Flight Unit fries itself beyond repair. 01078_ Lgt. Ion Engine fries itself beyond repair. 01102_ F5-31L(R) suffers critical hit (Meltdown). 01102_ Sub. Power Source melted. 01102_ Disposable Heat Sink melted. 01107_ Particle Gun destroyed. Map ----- +----------------------------------------------------+ | ?????????????????????????????????????????????????? | | ?????????????????????????????????????????????????? | | ?????????????????????????????????????????????????? | | ?????????????????????????????????????????????????? | | ?????????????????????????????????????????????????? | | ?????????????????????????????????????????????????? | | ?????????????????????????????????????????????????? | | ?????????????????????????????????????????????????? | | ???????????? ????????????????????????????????????? | | ??????????? #### ???????????????????????????????? | | ???????????? ???????????????????????????????? | | ???????????? ???????????????????????????????? | | ???????????? ???????????????????????????????? | | ???????????? ???????????????????????????????? | | ????????????# ????????????????????????????????? | | ???????????## ????????????????????????????????? | | ???????##### ?????????????????????????????????? | | ???????# ?????????????????????????????????? | | ???????# #?????????????????????????????????? | | ???????# #?????????????????????????????????? | | ???????? #############?????????????????????? | | ??????????# ## #?????????????????????? | | ???????????# #?????????????????????? | | ??????????## R #?????????????????????? | | ?????????## #### R& #?????????????????????? | | ?????????# #??### ###@ #?????????????????????? | | ?????????# ##????# #?# ##?????????????????????? | | ????????## #????# #?###??????????????????????? | | ????????# #????# #??????????????????????????? | | ????????# ##????# #??????????????????????????? | | ????????# #????# #??????????????????????????? | | ????????# ##????# #??????????????????????????? | | ????????# #????# #??????????????????????????? | | ????????# #???? ??????????????????????????? | | ????????##! #???? ??????????????????????????? | | ????????#&%& #???? ??????????????????????????? | | ????????#[! ##??? ?????????????????????????? | | ???????## " #??? " " ?????????????????????????? | | ??????#" %" #???""" """?????????????????????????? | | ??????" !%!"##?##?